[Event "Live Chess"]
[Site "Chess.com"]
[Date "2023.05.20"]
[Round "-"]
[White "mattihelenius2"]
[Black "whitedjohn"]
[Result "0-1"]
[WhiteElo "451"]
[BlackElo "1669"]
[TimeControl "300"]
[EndTime "10:52:09 PDT"]
[Termination "whitedjohn won by checkmate"]

1. d4 {[%clk 0:04:54.1]} 1... Nf6 {[%clk 0:04:47.4]} 2. c4 {[%clk 0:04:49.3]}
2... c5 {[%clk 0:04:44.6]} 3. Nf3 {[%clk 0:04:46.8]} 3... cxd4 {[%clk
0:04:40.3]} 4. Nxd4 {[%clk 0:04:44.9]} 4... Nc6 {[%clk 0:04:39]} 5. Bg5 {[%clk
0:04:39.5]} 5... d6 {[%clk 0:04:28.1]} 6. Nxc6 {[%clk 0:04:22.2]} 6... bxc6
{[%clk 0:04:25.6]} 7. b3 {[%clk 0:04:10.8]} 7... e6 {[%clk 0:04:23.1]} 8. e3
{[%clk 0:04:06.7]} 8... Be7 {[%clk 0:04:21.6]} 9. Nc3 {[%clk 0:04:03.9]} 9...
O-O {[%clk 0:04:19.6]} 10. Ne4 {[%clk 0:04:02.5]} 10... Nxe4 {[%clk 0:04:15.5]}
11. Bf4 {[%clk 0:03:59]} 11... e5 {[%clk 0:04:11.7]} 12. Bg3 {[%clk 0:03:54.9]}
12... Qa5+ {[%clk 0:04:08.8]} 13. Ke2 {[%clk 0:03:46.9]} 13... Nc3+ {[%clk
0:04:07.3]} 14. Kd2 {[%clk 0:03:41.3]} 14... Nxd1+ {[%clk 0:04:05.4]} 15. Kxd1
{[%clk 0:03:37.9]} 15... Bf5 {[%clk 0:03:58.9]} 16. Rc1 {[%clk 0:03:30.8]} 16...
Qxa2 {[%clk 0:03:55.1]} 17. Rc2 {[%clk 0:03:15.6]} 17... Qxc2+ {[%clk
0:03:52.2]} 18. Ke1 {[%clk 0:03:14]} 18... Qxb3 {[%clk 0:03:48.8]} 19. f4 {[%clk
0:03:09.7]} 19... Bd3 {[%clk 0:03:42.2]} 20. Kf2 {[%clk 0:02:59.2]} 20... Bxf1
{[%clk 0:03:38.7]} 21. Kxf1 {[%clk 0:02:58.4]} 21... exf4 {[%clk 0:03:34.7]} 22.
exf4 {[%clk 0:02:55.9]} 22... Qxc4+ {[%clk 0:03:32.9]} 23. Kf2 {[%clk 0:02:52]}
23... Qc2+ {[%clk 0:03:31.2]} 24. Kf3 {[%clk 0:02:46.7]} 24... Qd3+ {[%clk
0:03:29.1]} 25. Kg4 {[%clk 0:02:44.2]} 25... f5+ {[%clk 0:03:26]} 26. Kh3 {[%clk
0:02:39.8]} 26... Rf6 {[%clk 0:03:18.3]} 27. Kh4 {[%clk 0:02:27.9]} 27... Rh6#
{[%clk 0:03:16.2]} 0-1

[Event "Live Chess"]
[Site "Chess.com"]
[Date "2023.05.20"]
[Round "-"]
[White "SavagePawn7"]
[Black "Enhard"]
[Result "0-1"]
[WhiteElo "750"]
[BlackElo "1440"]
[TimeControl "300"]
[EndTime "10:52:12 PDT"]
[Termination "Enhard won by resignation"]

1. e4 {[%clk 0:04:57]} 1... c6 {[%clk 0:04:59.3]} 2. d4 {[%clk 0:04:54.2]} 2...
d5 {[%clk 0:04:57.2]} 3. Nc3 {[%clk 0:04:52.8]} 3... dxe4 {[%clk 0:04:56]} 4.
Bc4 {[%clk 0:04:49.4]} 4... Bf5 {[%clk 0:04:43.3]} 5. f3 {[%clk 0:04:46.9]} 5...
exf3 {[%clk 0:04:37.1]} 6. Nxf3 {[%clk 0:04:45.6]} 6... e6 {[%clk 0:04:36.5]} 7.
O-O {[%clk 0:04:30.8]} 7... Nf6 {[%clk 0:04:31.4]} 8. Ne5 {[%clk 0:04:08.5]}
8... Nbd7 {[%clk 0:04:29]} 9. Rxf5 {[%clk 0:03:53.8]} 9... exf5 {[%clk
0:04:11.2]} 10. Nxd7 {[%clk 0:03:42.1]} 10... Qxd7 {[%clk 0:04:07.9]} 11. Qe1+
{[%clk 0:03:39.1]} 11... Be7 {[%clk 0:04:06.3]} 12. Bg5 {[%clk 0:03:35.9]} 12...
O-O {[%clk 0:04:04]} 13. Rd1 {[%clk 0:03:30.9]} 13... Rae8 {[%clk 0:03:55.9]}
14. d5 {[%clk 0:03:22.6]} 14... Nxd5 {[%clk 0:03:51.3]} 15. Nxd5 {[%clk
0:03:17.6]} 15... cxd5 {[%clk 0:03:36.7]} 16. Bxd5 {[%clk 0:03:16]} 16... Kh8
{[%clk 0:03:33.3]} 17. Bxe7 {[%clk 0:02:51.9]} 17... Qxe7 {[%clk 0:03:31.6]} 18.
Qf2 {[%clk 0:02:41.2]} 18... Qe3 {[%clk 0:03:27.6]} 19. Qxe3 {[%clk 0:02:37.5]}
19... Rxe3 {[%clk 0:03:25.2]} 20. Rf1 {[%clk 0:02:26.9]} 20... b6 {[%clk
0:03:21.1]} 21. Rxf5 {[%clk 0:02:19.7]} 21... f6 {[%clk 0:03:19.8]} 22. Kf2
{[%clk 0:02:17.8]} 22... Re5 {[%clk 0:03:12.4]} 23. Rxe5 {[%clk 0:02:14.9]}
23... fxe5+ {[%clk 0:03:11.1]} 24. Ke3 {[%clk 0:02:05.9]} 24... Rf4 {[%clk
0:03:07.8]} 25. g3 {[%clk 0:02:00.8]} 25... Rd4 {[%clk 0:03:05.4]} 26. c3 {[%clk
0:01:57.8]} 26... Rxd5 {[%clk 0:03:04]} 0-1

[Event "Live Chess"]
[Site "Chess.com"]
[Date "2023.05.20"]
[Round "-"]
[White "lucaskk818"]
[Black "Jeffaroow"]
[Result "1-0"]
[WhiteElo "1879"]
[BlackElo "465"]
[TimeControl "300"]
[EndTime "10:52:12 PDT"]
[Termination "lucaskk818 won by resignation"]

1. d4 {[%clk 0:04:58.3]} 1... d5 {[%clk 0:04:50.6]} 2. c4 {[%clk 0:04:56.7]}
2... e5 {[%clk 0:04:50.3]} 3. dxe5 {[%clk 0:04:55]} 3... dxc4 {[%clk 0:04:45.3]}
4. Qxd8+ {[%clk 0:04:53.3]} 4... Kxd8 {[%clk 0:04:40.2]} 5. e3 {[%clk
0:04:53.2]} 5... Be6 {[%clk 0:04:31.2]} 6. Nc3 {[%clk 0:04:49.2]} 6... f6 {[%clk
0:04:26.9]} 7. exf6 {[%clk 0:04:47.6]} 7... Nxf6 {[%clk 0:04:25.1]} 8. Nf3
{[%clk 0:04:47.5]} 8... Nc6 {[%clk 0:04:19.4]} 9. Nd4 {[%clk 0:04:47.4]} 9...
Nxd4 {[%clk 0:04:17.5]} 10. exd4 {[%clk 0:04:47.3]} 10... c6 {[%clk 0:04:12]}
11. Be3 {[%clk 0:04:46.5]} 11... Bb4 {[%clk 0:04:02.5]} 12. O-O-O {[%clk
0:04:45.8]} 12... Bxc3 {[%clk 0:04:00.7]} 13. bxc3 {[%clk 0:04:45.7]} 13... Ne4
{[%clk 0:03:46.4]} 14. Kc2 {[%clk 0:04:39.5]} 14... g5 {[%clk 0:03:35.8]} 15. f3
{[%clk 0:04:38.2]} 15... Nf6 {[%clk 0:03:19.3]} 16. Bxg5 {[%clk 0:04:36.8]}
16... Rf8 {[%clk 0:03:15.8]} 17. Re1 {[%clk 0:04:33.1]} 17... Kd7 {[%clk
0:03:11.6]} 18. g3 {[%clk 0:04:17.8]} 18... Ng8 {[%clk 0:03:07.4]} 19. f4 {[%clk
0:04:14.7]} 19... h6 {[%clk 0:03:02.5]} 20. f5 {[%clk 0:04:09.2]} 20... Rxf5
{[%clk 0:02:56.6]} 21. Bh3 {[%clk 0:04:03.2]} 21... Rxg5 {[%clk 0:02:52.3]} 22.
Bxe6+ {[%clk 0:04:01.2]} 22... Ke7 {[%clk 0:02:50.7]} 23. Bxg8+ {[%clk
0:03:59.1]} 23... Kf6 {[%clk 0:02:46.6]} 24. Bxc4 {[%clk 0:03:59]} 24... Rf5
{[%clk 0:02:40.6]} 25. Rhf1 {[%clk 0:03:58.9]} 25... Rxf1 {[%clk 0:02:38.3]} 26.
Rxf1+ {[%clk 0:03:58.8]} 26... Kg5 {[%clk 0:02:35.1]} 27. Rf7 {[%clk 0:03:58.7]}
27... Re8 {[%clk 0:02:30.9]} 28. Rxb7 {[%clk 0:03:57.2]} 28... Re2+ {[%clk
0:02:29.1]} 29. Kb3 {[%clk 0:03:56.7]} 29... Rxh2 {[%clk 0:02:24.7]} 30. Rxa7
{[%clk 0:03:56.2]} 30... Rh3 {[%clk 0:02:21.1]} 31. a4 {[%clk 0:03:47.5]} 31...
Kg4 {[%clk 0:02:11]} 32. Be6+ {[%clk 0:03:44.6]} 1-0

[Event "Live Chess"]
[Site "Chess.com"]
[Date "2023.05.20"]
[Round "-"]
[White "Tilbs_12"]
[Black "PaulyD81"]
[Result "1-0"]
[WhiteElo "1587"]
[BlackElo "1151"]
[TimeControl "300"]
[EndTime "10:52:13 PDT"]
[Termination "Tilbs_12 won on time"]

1. e4 {[%clk 0:04:58.7]} 1... d5 {[%clk 0:04:57.3]} 2. exd5 {[%clk 0:04:57.3]}
2... Qxd5 {[%clk 0:04:57.2]} 3. Nc3 {[%clk 0:04:56]} 3... Qa5 {[%clk 0:04:56.4]}
4. Bc4 {[%clk 0:04:52.8]} 4... Qe5+ {[%clk 0:04:38.7]} 5. Nge2 {[%clk 0:04:47]}
5... e6 {[%clk 0:04:31.1]} 6. O-O {[%clk 0:04:43.6]} 6... Qc5 {[%clk 0:04:21.4]}
7. Bb3 {[%clk 0:04:33.9]} 7... Nf6 {[%clk 0:04:17.4]} 8. d4 {[%clk 0:04:32.7]}
8... Qa5 {[%clk 0:04:00]} 9. Bd2 {[%clk 0:04:13.6]} 9... c6 {[%clk 0:03:52.6]}
10. Ne4 {[%clk 0:04:07.2]} 10... Qd8 {[%clk 0:03:51.3]} 11. Nxf6+ {[%clk
0:03:53]} 11... Qxf6 {[%clk 0:03:42.6]} 12. c3 {[%clk 0:03:51.8]} 12... Nd7
{[%clk 0:03:39.7]} 13. Ng3 {[%clk 0:03:41.2]} 13... Qd8 {[%clk 0:03:20.2]} 14.
Re1 {[%clk 0:03:35.2]} 14... Be7 {[%clk 0:03:13.2]} 15. Qg4 {[%clk 0:03:24.3]}
15... O-O {[%clk 0:02:55.3]} 16. Bh6 {[%clk 0:03:07.8]} 16... Bf6 {[%clk
0:02:27]} 17. Bf4 {[%clk 0:03:02.6]} 17... g6 {[%clk 0:02:17.9]} 18. Ne4 {[%clk
0:02:51]} 18... Bg7 {[%clk 0:02:15.2]} 19. Bg5 {[%clk 0:02:44.5]} 19... Nf6
{[%clk 0:02:04.9]} 20. Nxf6+ {[%clk 0:02:39.5]} 20... Bxf6 {[%clk 0:02:02.3]}
21. Bxf6 {[%clk 0:02:38.8]} 21... Qxf6 {[%clk 0:02:00.4]} 22. Qe4 {[%clk
0:02:25.6]} 22... Bd7 {[%clk 0:01:27.7]} 23. Re3 {[%clk 0:02:23.3]} 23... Rfd8
{[%clk 0:01:17.1]} 24. Rf3 {[%clk 0:02:22]} 24... Qg7 {[%clk 0:01:11.1]} 25. h4
{[%clk 0:02:01.1]} 25... h5 {[%clk 0:01:05.6]} 26. Bc2 {[%clk 0:01:46.1]} 26...
Rab8 {[%clk 0:00:55.6]} 27. Rg3 {[%clk 0:01:43.5]} 27... c5 {[%clk 0:00:45.8]}
28. Qe2 {[%clk 0:01:40.5]} 28... cxd4 {[%clk 0:00:34.5]} 29. cxd4 {[%clk
0:01:25.7]} 29... Bc6 {[%clk 0:00:30.3]} 30. Rd3 {[%clk 0:01:20]} 30... Bb5
{[%clk 0:00:20.3]} 31. Qf3 {[%clk 0:01:13.2]} 31... Bxd3 {[%clk 0:00:18.5]} 32.
Bxd3 {[%clk 0:01:12.2]} 32... Rxd4 {[%clk 0:00:16.2]} 33. Bc2 {[%clk 0:01:09]}
33... Rbd8 {[%clk 0:00:14.7]} 34. Bb3 {[%clk 0:01:07.2]} 34... Rd3 {[%clk
0:00:12.8]} 35. Qxb7 {[%clk 0:01:05.4]} 35... Rd1+ {[%clk 0:00:10.4]} 36. Rxd1
{[%clk 0:01:03.1]} 36... Rxd1+ {[%clk 0:00:09]} 37. Kh2 {[%clk 0:01:02.4]} 37...
Rd8 {[%clk 0:00:05.4]} 38. Qxa7 {[%clk 0:00:58.7]} 38... Re8 {[%clk 0:00:04]}
39. Qe3 {[%clk 0:00:55.1]} 39... e5 {[%clk 0:00:02.7]} 40. a3 {[%clk 0:00:54.3]}
40... e4 {[%clk 0:00:01.8]} 41. a4 {[%clk 0:00:53.6]} 1-0

[Event "Live Chess"]
[Site "Chess.com"]
[Date "2023.05.20"]
[Round "-"]
[White "Delacorta"]
[Black "mliszewski"]
[Result "0-1"]
[WhiteElo "1406"]
[BlackElo "1901"]
[TimeControl "300"]
[EndTime "10:52:13 PDT"]
[Termination "mliszewski won by resignation"]

1. d4 {[%clk 0:04:57.7]} 1... d5 {[%clk 0:04:56.7]} 2. Nf3 {[%clk 0:04:56.7]}
2... Nc6 {[%clk 0:04:54.7]} 3. e3 {[%clk 0:04:55.8]} 3... Bg4 {[%clk 0:04:52.8]}
4. h3 {[%clk 0:04:53.8]} 4... Bxf3 {[%clk 0:04:51]} 5. Qxf3 {[%clk 0:04:51.7]}
5... e6 {[%clk 0:04:50.9]} 6. Nd2 {[%clk 0:04:44.6]} 6... Nf6 {[%clk 0:04:50.4]}
7. a3 {[%clk 0:04:43]} 7... Bd6 {[%clk 0:04:46.8]} 8. b3 {[%clk 0:04:41.6]} 8...
O-O {[%clk 0:04:45.8]} 9. Bb2 {[%clk 0:04:40.8]} 9... Re8 {[%clk 0:04:39.9]} 10.
c4 {[%clk 0:04:14.3]} 10... e5 {[%clk 0:04:30.2]} 11. c5 {[%clk 0:04:07.5]}
11... e4 {[%clk 0:04:28.8]} 12. Qd1 {[%clk 0:04:05.7]} 12... Bf8 {[%clk
0:04:25.4]} 13. Bb5 {[%clk 0:03:58.5]} 13... Nd7 {[%clk 0:04:14]} 14. f3 {[%clk
0:03:53.3]} 14... Qg5 {[%clk 0:04:12.5]} 15. Qe2 {[%clk 0:03:44]} 15... exf3
{[%clk 0:04:07.5]} 16. Nxf3 {[%clk 0:03:25.5]} 16... Qg3+ {[%clk 0:04:03.2]} 17.
Qf2 {[%clk 0:03:10.7]} 17... Rxe3+ {[%clk 0:04:01.6]} 18. Be2 {[%clk 0:02:43.2]}
18... Qxf2+ {[%clk 0:03:53.1]} 19. Kxf2 {[%clk 0:02:42.1]} 19... Rxb3 {[%clk
0:03:52.7]} 0-1

[Event "Live Chess"]
[Site "Chess.com"]
[Date "2023.05.20"]
[Round "-"]
[White "siddu198"]
[Black "KuriyamaMiraiUA"]
[Result "1-0"]
[WhiteElo "1641"]
[BlackElo "676"]
[TimeControl "300"]
[EndTime "10:52:33 PDT"]
[Termination "siddu198 won by checkmate"]

1. d4 {[%clk 0:04:56.5]} 1... d5 {[%clk 0:04:58.1]} 2. e4 {[%clk 0:04:55.5]}
2... dxe4 {[%clk 0:04:54.5]} 3. c4 {[%clk 0:04:54]} 3... e6 {[%clk 0:04:45.3]}
4. Nc3 {[%clk 0:04:53]} 4... Nf6 {[%clk 0:04:43.6]} 5. Bg5 {[%clk 0:04:47.2]}
5... Nbd7 {[%clk 0:04:31.1]} 6. Nxe4 {[%clk 0:04:43]} 6... Bb4+ {[%clk 0:04:16]}
7. Ke2 {[%clk 0:04:36.9]} 7... h6 {[%clk 0:04:05.8]} 8. Bxf6 {[%clk 0:04:26.6]}
8... Nxf6 {[%clk 0:04:03.5]} 9. Nxf6+ {[%clk 0:04:25.7]} 9... Qxf6 {[%clk
0:04:02.2]} 10. Qa4+ {[%clk 0:04:25.1]} 10... Bd7 {[%clk 0:03:39.9]} 11. Qxb4
{[%clk 0:04:22.9]} 11... Qxd4 {[%clk 0:03:32.9]} 12. Nf3 {[%clk 0:03:58.9]}
12... Qe4+ {[%clk 0:03:24]} 13. Kd1 {[%clk 0:03:58.1]} 13... b6 {[%clk
0:03:08.4]} 14. Nd2 {[%clk 0:03:56.1]} 14... Qc6 {[%clk 0:02:56.1]} 15. Qc3
{[%clk 0:03:39]} 15... O-O {[%clk 0:02:52.2]} 16. Kc2 {[%clk 0:03:28.2]} 16...
a5 {[%clk 0:02:40.4]} 17. Bd3 {[%clk 0:03:27.2]} 17... b5 {[%clk 0:02:29.5]} 18.
cxb5 {[%clk 0:03:20]} 18... Qxc3+ {[%clk 0:02:26.8]} 19. bxc3 {[%clk 0:03:18.7]}
19... Rfb8 {[%clk 0:02:22.6]} 20. Rab1 {[%clk 0:03:12.8]} 20... f5 {[%clk
0:02:13.4]} 21. a4 {[%clk 0:03:09.8]} 21... Kf7 {[%clk 0:02:08.5]} 22. Bc4
{[%clk 0:03:09.1]} 22... Kf6 {[%clk 0:02:06.7]} 23. Nf3 {[%clk 0:03:08.4]} 23...
e5 {[%clk 0:02:00.6]} 24. Rhd1 {[%clk 0:03:06.3]} 24... Be6 {[%clk 0:01:57]} 25.
Bxe6 {[%clk 0:03:04.5]} 25... Kxe6 {[%clk 0:01:56.3]} 26. Rd2 {[%clk 0:02:58.4]}
26... e4 {[%clk 0:01:52.6]} 27. Nd4+ {[%clk 0:02:56.9]} 27... Ke5 {[%clk
0:01:48.1]} 28. Nc6+ {[%clk 0:02:55.9]} 28... Kf4 {[%clk 0:01:44.7]} 29. Nxb8
{[%clk 0:02:55.8]} 29... Rxb8 {[%clk 0:01:43.7]} 30. Rbd1 {[%clk 0:02:53.6]}
30... e3 {[%clk 0:01:39.8]} 31. fxe3+ {[%clk 0:02:48.6]} 31... Kxe3 {[%clk
0:01:39.2]} 32. Rd3+ {[%clk 0:02:48]} 32... Kf4 {[%clk 0:01:34.3]} 33. Rf1+
{[%clk 0:02:46.3]} 33... Kg5 {[%clk 0:01:33.2]} 34. Rd5 {[%clk 0:02:44.5]} 34...
Rf8 {[%clk 0:01:32.1]} 35. h3 {[%clk 0:02:35.4]} 35... Kg6 {[%clk 0:01:24.2]}
36. g4 {[%clk 0:02:28]} 36... Rf6 {[%clk 0:01:10]} 37. Rdxf5 {[%clk 0:02:26.6]}
37... Rxf5 {[%clk 0:01:06.9]} 38. Rxf5 {[%clk 0:02:25.7]} 38... Kh7 {[%clk
0:01:03]} 39. Rc5 {[%clk 0:02:25.2]} 39... g6 {[%clk 0:01:01.2]} 40. Rxc7+
{[%clk 0:02:25.1]} 40... Kg8 {[%clk 0:00:59.4]} 41. Ra7 {[%clk 0:02:25]} 41...
Kf8 {[%clk 0:00:58.3]} 42. Rxa5 {[%clk 0:02:24.9]} 42... Kf7 {[%clk 0:00:57.8]}
43. Ra7+ {[%clk 0:02:24.5]} 43... Kf6 {[%clk 0:00:57.2]} 44. Kd3 {[%clk
0:02:24]} 44... Kg5 {[%clk 0:00:56.6]} 45. b6 {[%clk 0:02:23.4]} 45... Kf4
{[%clk 0:00:56]} 46. b7 {[%clk 0:02:23.1]} 46... Kg3 {[%clk 0:00:54.4]} 47.
b8=Q+ {[%clk 0:02:21.1]} 47... Kxh3 {[%clk 0:00:53.8]} 48. Qf4 {[%clk
0:02:15.2]} 48... g5 {[%clk 0:00:51.3]} 49. Qf3+ {[%clk 0:02:13.5]} 49... Kh4
{[%clk 0:00:48.3]} 50. Rh7 {[%clk 0:02:10.5]} 50... h5 {[%clk 0:00:38.3]} 51.
Rxh5# {[%clk 0:02:10.4]} 1-0

[Event "Live Chess"]
[Site "Chess.com"]
[Date "2023.05.20"]
[Round "-"]
[White "OceanFloater"]
[Black "Richardallis"]
[Result "0-1"]
[WhiteElo "988"]
[BlackElo "1647"]
[TimeControl "300"]
[EndTime "10:52:37 PDT"]
[Termination "Richardallis won by checkmate"]

1. e4 {[%clk 0:04:56.9]} 1... d5 {[%clk 0:04:48.2]} 2. e5 {[%clk 0:04:50.5]}
2... Bf5 {[%clk 0:04:46.6]} 3. d4 {[%clk 0:04:48.4]} 3... e6 {[%clk 0:04:45.9]}
4. g4 {[%clk 0:04:45.8]} 4... Bg6 {[%clk 0:04:44.6]} 5. Bd3 {[%clk 0:04:42.7]}
5... c5 {[%clk 0:04:41.3]} 6. Bxg6 {[%clk 0:04:41]} 6... hxg6 {[%clk 0:04:40.9]}
7. h3 {[%clk 0:04:38.9]} 7... Nc6 {[%clk 0:04:38.6]} 8. Be3 {[%clk 0:04:37]}
8... cxd4 {[%clk 0:04:36.9]} 9. Bxd4 {[%clk 0:04:35.3]} 9... Nxd4 {[%clk
0:04:36]} 10. Qxd4 {[%clk 0:04:34.9]} 10... Ne7 {[%clk 0:04:34.5]} 11. Nc3
{[%clk 0:04:33.3]} 11... Nc6 {[%clk 0:04:33.3]} 12. Qa4 {[%clk 0:04:28.7]} 12...
Bb4 {[%clk 0:04:30.6]} 13. Ne2 {[%clk 0:04:22.9]} 13... Qa5 {[%clk 0:04:24]} 14.
Qxa5 {[%clk 0:04:21]} 14... Bxa5 {[%clk 0:04:23.6]} 15. a3 {[%clk 0:04:18.8]}
15... Bxc3+ {[%clk 0:04:17.9]} 16. Nxc3 {[%clk 0:04:17]} 16... Nxe5 {[%clk
0:04:17.3]} 17. O-O-O {[%clk 0:04:15]} 17... a6 {[%clk 0:04:15.5]} 18. Rhe1
{[%clk 0:04:13.2]} 18... Nf3 {[%clk 0:04:11.7]} 19. Re3 {[%clk 0:04:09.2]} 19...
Ng5 {[%clk 0:04:05.6]} 20. Rh1 {[%clk 0:04:00.3]} 20... O-O {[%clk 0:04:02.1]}
21. h4 {[%clk 0:03:58.7]} 21... Nh7 {[%clk 0:04:01]} 22. h5 {[%clk 0:03:56.7]}
22... g5 {[%clk 0:03:59.3]} 23. h6 {[%clk 0:03:54.7]} 23... g6 {[%clk
0:03:58.1]} 24. Rf1 {[%clk 0:03:47.2]} 24... f5 {[%clk 0:03:56.2]} 25. gxf5
{[%clk 0:03:43.8]} 25... exf5 {[%clk 0:03:54.5]} 26. Nxd5 {[%clk 0:03:41.5]}
26... Rae8 {[%clk 0:03:46.9]} 27. f4 {[%clk 0:03:37.5]} 27... g4 {[%clk
0:03:45.1]} 28. Rfe1 {[%clk 0:03:28.6]} 28... Kf7 {[%clk 0:03:43.9]} 29. Rxe8
{[%clk 0:03:20.2]} 29... Rxe8 {[%clk 0:03:42.7]} 30. Rxe8 {[%clk 0:03:18.9]}
30... Kxe8 {[%clk 0:03:42.3]} 31. Nb6 {[%clk 0:03:01.7]} 31... g3 {[%clk
0:03:40]} 32. Nc4 {[%clk 0:02:53.3]} 32... g2 {[%clk 0:03:38.4]} 33. Nd6+ {[%clk
0:02:50.1]} 33... Kd7 {[%clk 0:03:35.4]} 34. Nc4 {[%clk 0:02:42.1]} 34... g1=Q+
{[%clk 0:03:33.4]} 35. Kd2 {[%clk 0:02:41.7]} 35... Qf2+ {[%clk 0:03:32.1]} 36.
Kc3 {[%clk 0:02:40.7]} 36... Qxf4 {[%clk 0:03:30.1]} 37. Kb3 {[%clk 0:02:38.7]}
37... Qxh6 {[%clk 0:03:28.4]} 38. Ne5+ {[%clk 0:02:37.7]} 38... Ke6 {[%clk
0:03:25.6]} 39. Nd3 {[%clk 0:02:33.1]} 39... Qe3 {[%clk 0:03:24]} 40. Kc4 {[%clk
0:02:29.1]} 40... Nf6 {[%clk 0:03:21.7]} 41. Nc5+ {[%clk 0:02:26]} 41... Ke5
{[%clk 0:03:18.8]} 42. Nd3+ {[%clk 0:02:25]} 42... Ke4 {[%clk 0:03:16.1]} 43.
Nc5+ {[%clk 0:02:24]} 43... Kf3 {[%clk 0:03:15]} 44. Nd3 {[%clk 0:02:20.4]}
44... Ne4 {[%clk 0:03:13]} 45. Ne5+ {[%clk 0:02:18.5]} 45... Kg2 {[%clk
0:03:09.6]} 46. Nd3 {[%clk 0:02:15.4]} 46... Nd2+ {[%clk 0:03:07.2]} 47. Kc3
{[%clk 0:02:14.5]} 47... f4 {[%clk 0:03:06.2]} 48. b3 {[%clk 0:02:08.2]} 48...
f3 {[%clk 0:03:04.7]} 49. Kb2 {[%clk 0:02:05.4]} 49... Qd4+ {[%clk 0:03:03.2]}
50. Kc1 {[%clk 0:02:02.8]} 50... Nxb3+ {[%clk 0:03:02.2]} 51. Kd1 {[%clk
0:01:59.7]} 51... f2 {[%clk 0:02:59.9]} 52. Ke2 {[%clk 0:01:53.5]} 52... f1=Q#
{[%clk 0:02:57.8]} 0-1

[Event "Live Chess"]
[Site "Chess.com"]
[Date "2023.05.20"]
[Round "-"]
[White "booktrunk"]
[Black "Tushinskiy"]
[Result "0-1"]
[WhiteElo "1333"]
[BlackElo "2106"]
[TimeControl "300"]
[EndTime "10:52:40 PDT"]
[Termination "Tushinskiy won by checkmate"]

1. d4 {[%clk 0:04:59.6]} 1... d5 {[%clk 0:04:58.5]} 2. Nf3 {[%clk 0:04:56.9]}
2... c6 {[%clk 0:04:58.4]} 3. a3 {[%clk 0:04:56.1]} 3... Nf6 {[%clk 0:04:58.3]}
4. Nc3 {[%clk 0:04:54.7]} 4... e6 {[%clk 0:04:57.6]} 5. Bf4 {[%clk 0:04:53.1]}
5... Bd6 {[%clk 0:04:57]} 6. Bxd6 {[%clk 0:04:51.1]} 6... Qxd6 {[%clk
0:04:56.9]} 7. e3 {[%clk 0:04:49.5]} 7... Nbd7 {[%clk 0:04:56.8]} 8. b4 {[%clk
0:04:47.8]} 8... O-O {[%clk 0:04:56.7]} 9. b5 {[%clk 0:04:47]} 9... c5 {[%clk
0:04:54.5]} 10. dxc5 {[%clk 0:04:45.3]} 10... Nxc5 {[%clk 0:04:54.4]} 11. Qd4
{[%clk 0:04:40.7]} 11... b6 {[%clk 0:04:52.9]} 12. Be2 {[%clk 0:04:28.2]} 12...
Bb7 {[%clk 0:04:51.4]} 13. Ng5 {[%clk 0:04:21.9]} 13... e5 {[%clk 0:04:47.7]}
14. Qd2 {[%clk 0:04:16.8]} 14... Rad8 {[%clk 0:04:43.5]} 15. O-O {[%clk
0:04:14.1]} 15... d4 {[%clk 0:04:41.8]} 16. exd4 {[%clk 0:04:12.6]} 16... exd4
{[%clk 0:04:41.7]} 17. Nd1 {[%clk 0:04:02.4]} 17... h6 {[%clk 0:04:36.7]} 18.
Nf3 {[%clk 0:04:00.4]} 18... Nfe4 {[%clk 0:04:34.9]} 19. Qc1 {[%clk 0:03:55.8]}
19... Rfe8 {[%clk 0:04:33.1]} 20. Bc4 {[%clk 0:03:51.7]} 20... Qf6 {[%clk
0:04:23.1]} 21. Nb2 {[%clk 0:03:48.7]} 21... Nd6 {[%clk 0:04:20.9]} 22. Bd3
{[%clk 0:03:44.6]} 22... Bxf3 {[%clk 0:04:19]} 23. gxf3 {[%clk 0:03:41]} 23...
Qxf3 {[%clk 0:04:16]} 24. Nc4 {[%clk 0:03:35]} 24... Nxc4 {[%clk 0:04:13.8]} 25.
Bxc4 {[%clk 0:03:33.7]} 25... Re5 {[%clk 0:04:12.7]} 26. h4 {[%clk 0:03:28.3]}
26... Re4 {[%clk 0:04:10.7]} 27. Qd1 {[%clk 0:03:23]} 27... Rg4+ {[%clk
0:04:08.5]} 28. Kh2 {[%clk 0:03:21.4]} 28... Qg2# {[%clk 0:04:06.3]} 0-1